[Event "*** Titled Tuesday Blitz"]
[Site "Chess.com"]
[Date "2020.05.26"]
[Round "8"]
[White "vanyakuba"]
[Black "Julianos82"]
[Result "1-0"]
[WhiteElo "2463"]
[BlackElo "2308"]
[TimeControl "180+1"]
[EndTime "11:42:10 PDT"]
[Termination "vanyakuba won by resignation"]

1. e4 {[%clk 0:03:00.9]} 1... c5 {[%clk 0:02:59.7]} 2. Nc3 {[%clk 0:02:59.7]}
2... a6 {[%clk 0:02:59.6]} 3. a4 {[%clk 0:02:57.6]} 3... e6 {[%clk 0:02:59.3]}
4. Nf3 {[%clk 0:02:54.4]} 4... b6 {[%clk 0:02:59]} 5. d4 {[%clk 0:02:54.1]} 5...
cxd4 {[%clk 0:02:59.9]} 6. Nxd4 {[%clk 0:02:54.8]} 6... Bb7 {[%clk 0:03:00.3]}
7. Bd3 {[%clk 0:02:55.1]} 7... Qc7 {[%clk 0:02:57.5]} 8. O-O {[%clk 0:02:54.6]}
8... Nf6 {[%clk 0:02:57.1]} 9. Be3 {[%clk 0:02:49.9]} 9... h5 {[%clk 0:02:51.1]}
10. f3 {[%clk 0:02:40.6]} 10... Bc5 {[%clk 0:02:36.6]} 11. Qe1 {[%clk
0:02:27.6]} 11... Nc6 {[%clk 0:02:31.6]} 12. Nb3 {[%clk 0:02:17.3]} 12... Bxe3+
{[%clk 0:02:17.3]} 13. Qxe3 {[%clk 0:02:18.2]} 13... Ne5 {[%clk 0:01:59]} 14. a5
{[%clk 0:01:53.9]} 14... b5 {[%clk 0:01:53.1]} 15. Rfd1 {[%clk 0:01:01.1]} 15...
Rc8 {[%clk 0:01:44.7]} 16. Bxb5 {[%clk 0:00:55]} 16... h4 {[%clk 0:01:13.3]} 17.
Be2 {[%clk 0:00:46.4]} 17... Nh5 {[%clk 0:01:03.2]} 18. Qb6 {[%clk 0:00:39.2]}
18... Nf4 {[%clk 0:00:43.9]} 19. Qxc7 {[%clk 0:00:32.2]} 19... Rxc7 {[%clk
0:00:44.3]} 20. Kf2 {[%clk 0:00:26.3]} 20... Ke7 {[%clk 0:00:35.4]} 21. Bf1
{[%clk 0:00:20.7]} 21... d6 {[%clk 0:00:31.5]} 22. Ke3 {[%clk 0:00:20.4]} 22...
g5 {[%clk 0:00:30.5]} 23. Nd4 {[%clk 0:00:19.6]} 23... Nc4+ {[%clk 0:00:25.2]}
24. Bxc4 {[%clk 0:00:19.1]} 24... Rxc4 {[%clk 0:00:26.1]} 25. Ra4 {[%clk
0:00:19.1]} 25... Rhc8 {[%clk 0:00:25]} 26. Rxc4 {[%clk 0:00:16.2]} 26... Rxc4
{[%clk 0:00:25.9]} 27. Rd2 {[%clk 0:00:15.4]} 27... Rb4 {[%clk 0:00:16.4]} 28.
Nb3 {[%clk 0:00:15.4]} 28... d5 {[%clk 0:00:15.8]} 29. g3 {[%clk 0:00:11.7]}
29... hxg3 {[%clk 0:00:15.2]} 30. hxg3 {[%clk 0:00:12.6]} 30... Ng6 {[%clk
0:00:14.2]} 31. exd5 {[%clk 0:00:12.8]} 31... Ne5 {[%clk 0:00:14.1]} 32. d6+
{[%clk 0:00:12]} 32... Kd8 {[%clk 0:00:12.9]} 33. Rd4 {[%clk 0:00:11.3]} 33...
Nc4+ {[%clk 0:00:09.4]} 34. Kf2 {[%clk 0:00:10.1]} 34... e5 {[%clk 0:00:09.1]}
35. Rg4 {[%clk 0:00:05.9]} 35... f5 {[%clk 0:00:09]} 36. Rxg5 {[%clk 0:00:05.9]}
36... Nxb2 {[%clk 0:00:09.6]} 37. Rxf5 {[%clk 0:00:04.2]} 37... Bd5 {[%clk
0:00:08.5]} 38. Rxe5 {[%clk 0:00:03.9]} 38... Bxb3 {[%clk 0:00:08.2]} 39. cxb3
{[%clk 0:00:04.8]} 39... Rxb3 {[%clk 0:00:08.7]} 40. Ne4 {[%clk 0:00:05.5]}
40... Nd3+ {[%clk 0:00:08.8]} 41. Ke3 {[%clk 0:00:05.6]} 41... Nxe5+ {[%clk
0:00:09.7]} 42. Kf4 {[%clk 0:00:04.9]} 42... Nd3+ {[%clk 0:00:09.5]} 43. Kf5
{[%clk 0:00:04.8]} 43... Nb4 {[%clk 0:00:09.8]} 44. f4 {[%clk 0:00:03.9]} 44...
Rd3 {[%clk 0:00:10.1]} 45. g4 {[%clk 0:00:03.9]} 45... Rd5+ {[%clk 0:00:10.2]}
46. Ke6 {[%clk 0:00:03.9]} 46... Rxa5 {[%clk 0:00:10.8]} 47. f5 {[%clk
0:00:03.8]} 47... Nd5 {[%clk 0:00:11.1]} 48. g5 {[%clk 0:00:03.1]} 48... Ra4
{[%clk 0:00:10.9]} 49. Ng3 {[%clk 0:00:02.2]} 49... Ne3 {[%clk 0:00:10.9]} 50.
f6 {[%clk 0:00:02]} 50... Ng4 {[%clk 0:00:08.1]} 51. f7 {[%clk 0:00:02.2]} 51...
Rf4 {[%clk 0:00:08.8]} 52. Nh5 {[%clk 0:00:02.4]} 52... Ne3 {[%clk 0:00:08.1]}
53. Nf6 {[%clk 0:00:01.9]} 53... Nd5 {[%clk 0:00:08.2]} 54. Nxd5 {[%clk
0:00:01.9]} 54... Rxf7 {[%clk 0:00:07.7]} 55. Kxf7 {[%clk 0:00:01.4]} 55... Kd7
{[%clk 0:00:08.6]} 56. Nf6+ {[%clk 0:00:01.9]} 56... Kxd6 {[%clk 0:00:08.4]} 57.
g6 {[%clk 0:00:02.8]} 57... a5 {[%clk 0:00:09.1]} 58. g7 {[%clk 0:00:03.7]}
58... a4 {[%clk 0:00:09.9]} 59. g8=Q {[%clk 0:00:04.6]} 59... Ke5 {[%clk
0:00:10.4]} 60. Qg1 {[%clk 0:00:05.5]} 60... a3 {[%clk 0:00:11]} 61. Qa1+ {[%clk
0:00:06.4]} 61... Kd6 {[%clk 0:00:10.6]} 62. Ne8+ {[%clk 0:00:06.5]} 62... Kc5
{[%clk 0:00:10.1]} 63. Qxa3+ {[%clk 0:00:07]} 63... Kc4 {[%clk 0:00:11]} 64.
Qc1+ {[%clk 0:00:07]} 64... Kb5 {[%clk 0:00:11.9]} 65. Ke6 {[%clk 0:00:07.7]}
65... Ka4 {[%clk 0:00:12.7]} 66. Qb1 {[%clk 0:00:07]} 66... Ka3 {[%clk
0:00:12.9]} 67. Kd5 {[%clk 0:00:07.2]} 67... Ka4 {[%clk 0:00:13.4]} 68. Kc4
{[%clk 0:00:07.6]} 1-0

[Event "*** Titled Tuesday Blitz"]
[Site "Chess.com"]
[Date "2020.05.26"]
[Round "8"]
[White "robertofabregas"]
[Black "DACF2905"]
[Result "1-0"]
[WhiteElo "2124"]
[BlackElo "2255"]
[TimeControl "180+1"]
[EndTime "11:42:11 PDT"]
[Termination "robertofabregas won on time"]

1. c4 {[%clk 0:03:00.9]} 1... e5 {[%clk 0:02:59]} 2. Nc3 {[%clk 0:03:00.9]} 2...
Nf6 {[%clk 0:02:58.3]} 3. Nf3 {[%clk 0:03:00.2]} 3... Nc6 {[%clk 0:02:57.3]} 4.
g3 {[%clk 0:02:59.8]} 4... Bb4 {[%clk 0:02:55.2]} 5. Qb3 {[%clk 0:02:57.3]} 5...
Qe7 {[%clk 0:02:48.4]} 6. a3 {[%clk 0:02:53]} 6... Bc5 {[%clk 0:02:40.6]} 7. Bg2
{[%clk 0:02:46.1]} 7... h6 {[%clk 0:02:10.5]} 8. O-O {[%clk 0:02:30]} 8... e4
{[%clk 0:02:08.2]} 9. Ne1 {[%clk 0:02:09]} 9... Nd4 {[%clk 0:02:07.8]} 10. Qd1
{[%clk 0:02:03]} 10... c6 {[%clk 0:02:03.1]} 11. e3 {[%clk 0:02:02]} 11... Nf5
{[%clk 0:01:56.3]} 12. b4 {[%clk 0:01:51.8]} 12... Bb6 {[%clk 0:01:54.5]} 13. c5
{[%clk 0:01:38.9]} 13... Bc7 {[%clk 0:01:54.1]} 14. Qc2 {[%clk 0:01:30.7]} 14...
d5 {[%clk 0:01:52.7]} 15. cxd6 {[%clk 0:01:23.9]} 15... Nxd6 {[%clk 0:01:50.1]}
16. Bb2 {[%clk 0:01:10.7]} 16... Bf5 {[%clk 0:01:44.6]} 17. d4 {[%clk 0:00:24]}
17... O-O {[%clk 0:01:36.6]} 18. Qe2 {[%clk 0:00:20.3]} 18... Qe6 {[%clk
0:01:23.6]} 19. Nc2 {[%clk 0:00:20]} 19... Bg4 {[%clk 0:01:16.6]} 20. f3 {[%clk
0:00:18.7]} 20... exf3 {[%clk 0:01:14.9]} 21. Bxf3 {[%clk 0:00:19]} 21... Bxf3
{[%clk 0:01:11.8]} 22. Qxf3 {[%clk 0:00:18.9]} 22... Rae8 {[%clk 0:01:07.8]} 23.
Rae1 {[%clk 0:00:17.9]} 23... Nde4 {[%clk 0:01:07.8]} 24. Nxe4 {[%clk
0:00:17.3]} 24... Qxe4 {[%clk 0:01:05.8]} 25. Qxe4 {[%clk 0:00:16.8]} 25... Nxe4
{[%clk 0:01:05.7]} 26. Bc1 {[%clk 0:00:10.4]} 26... f5 {[%clk 0:00:58]} 27. Re2
{[%clk 0:00:09.7]} 27... g6 {[%clk 0:00:57.3]} 28. Ne1 {[%clk 0:00:10.1]} 28...
h5 {[%clk 0:00:55.1]} 29. Nf3 {[%clk 0:00:09.5]} 29... Rf7 {[%clk 0:00:53.2]}
30. Nd2 {[%clk 0:00:07.9]} 30... Rfe7 {[%clk 0:00:51.1]} 31. Nxe4 {[%clk
0:00:07.9]} 31... Rxe4 {[%clk 0:00:51]} 32. Rfe1 {[%clk 0:00:07.9]} 32... Kf7
{[%clk 0:00:49.8]} 33. Kf2 {[%clk 0:00:08.2]} 33... a5 {[%clk 0:00:49.5]} 34.
Rc2 {[%clk 0:00:08.5]} 34... axb4 {[%clk 0:00:49.3]} 35. axb4 {[%clk 0:00:09.4]}
35... Bb6 {[%clk 0:00:48.9]} 36. Bd2 {[%clk 0:00:09.6]} 36... Ra8 {[%clk
0:00:46.5]} 37. Rec1 {[%clk 0:00:08.8]} 37... Rd8 {[%clk 0:00:27.8]} 38. b5
{[%clk 0:00:07.6]} 38... cxb5 {[%clk 0:00:26.2]} 39. Rb2 {[%clk 0:00:08.1]}
39... Rd5 {[%clk 0:00:25.4]} 40. Rcb1 {[%clk 0:00:08.4]} 40... Bd8 {[%clk
0:00:15.9]} 41. h4 {[%clk 0:00:04.7]} 41... Bf6 {[%clk 0:00:14.1]} 42. Rxb5
{[%clk 0:00:04.6]} 42... Rxb5 {[%clk 0:00:13.9]} 43. Rxb5 {[%clk 0:00:03.6]}
43... Re7 {[%clk 0:00:14.8]} 44. Rb6 {[%clk 0:00:03.7]} 44... Rd7 {[%clk
0:00:14.6]} 45. Rb3 {[%clk 0:00:04.3]} 45... Bd8 {[%clk 0:00:14.3]} 46. Rd3
{[%clk 0:00:04.8]} 46... Ke6 {[%clk 0:00:14.5]} 47. Kf3 {[%clk 0:00:05.3]} 47...
Kd5 {[%clk 0:00:14.6]} 48. Bb4 {[%clk 0:00:05.8]} 48... Rc7 {[%clk 0:00:14.2]}
49. Bc5 {[%clk 0:00:06.1]} 49... Rc6 {[%clk 0:00:13.2]} 50. Rb3 {[%clk
0:00:06.5]} 50... b6 {[%clk 0:00:13.5]} 51. Bb4 {[%clk 0:00:06.5]} 51... Kc4
{[%clk 0:00:12.5]} 52. Rb1 {[%clk 0:00:06]} 52... b5 {[%clk 0:00:11.7]} 53. Bf8
{[%clk 0:00:06.9]} 53... Ba5 {[%clk 0:00:09.9]} 54. Rc1+ {[%clk 0:00:07]} 54...
Bc3 {[%clk 0:00:09.2]} 55. Bg7 {[%clk 0:00:05.8]} 55... b4 {[%clk 0:00:08.5]}
56. d5 {[%clk 0:00:06.2]} 56... Kxd5 {[%clk 0:00:08.1]} 57. Bxc3 {[%clk
0:00:06.6]} 1-0

[Event "*** Titled Tuesday Blitz"]
[Site "Chess.com"]
[Date "2020.05.26"]
[Round "8"]
[White "ChristianAlm"]
[Black "Vandros57"]
[Result "1-0"]
[WhiteElo "2396"]
[BlackElo "2224"]
[TimeControl "180+1"]
[EndTime "11:42:13 PDT"]
[Termination "ChristianAlm won by checkmate"]

1. e4 {[%clk 0:03:00.9]} 1... c5 {[%clk 0:02:59]} 2. Nf3 {[%clk 0:03:00.2]} 2...
e6 {[%clk 0:02:58.4]} 3. d4 {[%clk 0:02:59.1]} 3... cxd4 {[%clk 0:02:58]} 4. c3
{[%clk 0:02:59.6]} 4... Nc6 {[%clk 0:02:41.1]} 5. cxd4 {[%clk 0:02:57.4]} 5...
d5 {[%clk 0:02:40.4]} 6. e5 {[%clk 0:02:57.6]} 6... Bb4+ {[%clk 0:02:35.4]} 7.
Nc3 {[%clk 0:02:57]} 7... Nge7 {[%clk 0:02:34.2]} 8. Bd3 {[%clk 0:02:56.2]} 8...
h6 {[%clk 0:02:31.4]} 9. O-O {[%clk 0:02:55.3]} 9... O-O {[%clk 0:02:30.5]} 10.
a3 {[%clk 0:02:54.8]} 10... Ba5 {[%clk 0:02:29.1]} 11. Bf4 {[%clk 0:02:54]}
11... Bb6 {[%clk 0:02:27.1]} 12. Bc2 {[%clk 0:02:47.4]} 12... Nf5 {[%clk
0:02:20.8]} 13. Ne2 {[%clk 0:02:46.7]} 13... g5 {[%clk 0:02:14.1]} 14. Bg3
{[%clk 0:02:42]} 14... Kg7 {[%clk 0:02:08]} 15. Qd3 {[%clk 0:02:31.4]} 15... Bd7
{[%clk 0:01:45.5]} 16. Rad1 {[%clk 0:02:25.7]} 16... Rc8 {[%clk 0:01:44.3]} 17.
b4 {[%clk 0:02:23.3]} 17... a6 {[%clk 0:01:43.3]} 18. h3 {[%clk 0:02:10]} 18...
Nce7 {[%clk 0:01:42.3]} 19. Bh2 {[%clk 0:02:06.7]} 19... Bb5 {[%clk 0:01:41.1]}
20. Qd2 {[%clk 0:02:04.1]} 20... Ng6 {[%clk 0:01:34.4]} 21. Rfe1 {[%clk
0:02:01.4]} 21... Rc7 {[%clk 0:01:29.9]} 22. Nc3 {[%clk 0:01:56.9]} 22... Qd7
{[%clk 0:01:25.9]} 23. Bxf5 {[%clk 0:01:46.8]} 23... exf5 {[%clk 0:01:25.1]} 24.
e6 {[%clk 0:01:47]} 24... fxe6 {[%clk 0:01:24.1]} 25. Bxc7 {[%clk 0:01:47.3]}
25... Bxc7 {[%clk 0:01:23.2]} 26. Nxb5 {[%clk 0:01:46.8]} 26... Qxb5 {[%clk
0:01:19.7]} 27. Rxe6 {[%clk 0:01:40.2]} 27... Qd7 {[%clk 0:01:08.6]} 28. Rde1
{[%clk 0:01:34.4]} 28... Rf7 {[%clk 0:01:07.4]} 29. g3 {[%clk 0:01:13.2]} 29...
Bb8 {[%clk 0:01:04.7]} 30. Nxg5 {[%clk 0:01:09.9]} 30... Rf6 {[%clk 0:00:45]}
31. Rxf6 {[%clk 0:01:02.3]} 31... Kxf6 {[%clk 0:00:44.3]} 32. Nf3 {[%clk
0:00:56.8]} 32... f4 {[%clk 0:00:43]} 33. Ne5 {[%clk 0:00:53.2]} 33... Bxe5
{[%clk 0:00:38.3]} 34. dxe5+ {[%clk 0:00:52.4]} 34... Ke6 {[%clk 0:00:36.3]} 35.
Qd3 {[%clk 0:00:48.5]} 35... Qf7 {[%clk 0:00:34.6]} 36. Qf3 {[%clk 0:00:42.3]}
36... Qf5 {[%clk 0:00:28]} 37. Qg4 {[%clk 0:00:38.7]} 37... Qxg4 {[%clk
0:00:27.1]} 38. hxg4 {[%clk 0:00:39.6]} 38... fxg3 {[%clk 0:00:27]} 39. f3
{[%clk 0:00:36.3]} 39... d4 {[%clk 0:00:25.2]} 40. Kg2 {[%clk 0:00:33.9]} 40...
Nf4+ {[%clk 0:00:24]} 41. Kxg3 {[%clk 0:00:32.9]} 41... Nd5 {[%clk 0:00:22.2]}
42. f4 {[%clk 0:00:32.4]} 42... Nc3 {[%clk 0:00:21.7]} 43. f5+ {[%clk
0:00:30.7]} 43... Ke7 {[%clk 0:00:20.5]} 44. Kf4 {[%clk 0:00:24.5]} 44... d3
{[%clk 0:00:20.1]} 45. Ke3 {[%clk 0:00:24]} 45... Nb5 {[%clk 0:00:18.5]} 46.
Kxd3 {[%clk 0:00:21.6]} 46... Nxa3 {[%clk 0:00:17.3]} 47. Rc1 {[%clk 0:00:13.8]}
47... b5 {[%clk 0:00:17]} 48. Ke4 {[%clk 0:00:12.9]} 48... Nc4 {[%clk
0:00:16.6]} 49. Rxc4 {[%clk 0:00:11.4]} 49... bxc4 {[%clk 0:00:16.5]} 50. Kd4
{[%clk 0:00:11.7]} 50... c3 {[%clk 0:00:16.6]} 51. Kxc3 {[%clk 0:00:11.9]} 51...
Kd7 {[%clk 0:00:16.9]} 52. Kc4 {[%clk 0:00:12]} 52... Kc6 {[%clk 0:00:16.9]} 53.
e6 {[%clk 0:00:11.5]} 53... Kd6 {[%clk 0:00:16.9]} 54. Kd4 {[%clk 0:00:11.8]}
54... Ke7 {[%clk 0:00:16.3]} 55. Ke5 {[%clk 0:00:10.7]} 55... h5 {[%clk
0:00:15.7]} 56. f6+ {[%clk 0:00:11.6]} 56... Ke8 {[%clk 0:00:14.9]} 57. gxh5
{[%clk 0:00:12.5]} 57... a5 {[%clk 0:00:14.1]} 58. bxa5 {[%clk 0:00:13.4]} 58...
Kd8 {[%clk 0:00:13.7]} 59. Kd5 {[%clk 0:00:14.3]} 59... Kc8 {[%clk 0:00:12.9]}
60. Kc6 {[%clk 0:00:14.4]} 60... Kb8 {[%clk 0:00:12.6]} 61. h6 {[%clk
0:00:15.3]} 61... Ka7 {[%clk 0:00:12.2]} 62. Kb5 {[%clk 0:00:14.8]} 62... Kb7
{[%clk 0:00:11.7]} 63. h7 {[%clk 0:00:15.7]} 63... Kc7 {[%clk 0:00:11.4]} 64.
Kc5 {[%clk 0:00:16]} 64... Kb7 {[%clk 0:00:10.9]} 65. h8=Q {[%clk 0:00:16]}
65... Ka7 {[%clk 0:00:09.9]} 66. Kb5 {[%clk 0:00:15.6]} 66... Kb7 {[%clk
0:00:09]} 67. Qg7+ {[%clk 0:00:16.5]} 67... Ka8 {[%clk 0:00:08.5]} 68. Kc6
{[%clk 0:00:17.4]} 68... Kb8 {[%clk 0:00:05.2]} 69. Qb7# {[%clk 0:00:18.3]} 1-0

[Event "*** Titled Tuesday Blitz"]
[Site "Chess.com"]
[Date "2020.05.26"]
[Round "8"]
[White "Rodalquilar"]
[Black "KuzubovYuriy"]
[Result "0-1"]
[WhiteElo "2627"]
[BlackElo "2771"]
[TimeControl "180+1"]
[EndTime "11:42:14 PDT"]
[Termination "KuzubovYuriy won on time"]

1. d4 {[%clk 0:03:00.9]} 1... Nf6 {[%clk 0:02:59.9]} 2. c4 {[%clk 0:03:01.2]}
2... e6 {[%clk 0:03:00.4]} 3. Nc3 {[%clk 0:03:01.6]} 3... Bb4 {[%clk 0:02:59.8]}
4. Qc2 {[%clk 0:03:02.1]} 4... d6 {[%clk 0:02:54]} 5. Bd2 {[%clk 0:03:01.4]}
5... Nc6 {[%clk 0:02:52.2]} 6. e3 {[%clk 0:03:00.8]} 6... e5 {[%clk 0:02:48]} 7.
Nf3 {[%clk 0:02:54.6]} 7... Bg4 {[%clk 0:02:37.1]} 8. d5 {[%clk 0:02:51.2]} 8...
Bxc3 {[%clk 0:02:36.4]} 9. Bxc3 {[%clk 0:02:50.1]} 9... Ne7 {[%clk 0:02:35.8]}
10. Nd2 {[%clk 0:02:48]} 10... Bd7 {[%clk 0:02:32.9]} 11. f3 {[%clk 0:02:40.9]}
11... O-O {[%clk 0:02:24.8]} 12. Bd3 {[%clk 0:02:38]} 12... Kh8 {[%clk
0:02:20.5]} 13. O-O {[%clk 0:02:33]} 13... Ng6 {[%clk 0:02:09.7]} 14. Rad1
{[%clk 0:01:44.5]} 14... Qe7 {[%clk 0:01:56.4]} 15. Kh1 {[%clk 0:01:34.4]} 15...
Rae8 {[%clk 0:01:56.3]} 16. b4 {[%clk 0:01:28.9]} 16... Ng8 {[%clk 0:01:49.4]}
17. f4 {[%clk 0:01:11.4]} 17... f5 {[%clk 0:01:47]} 18. fxe5 {[%clk 0:01:05]}
18... Nxe5 {[%clk 0:01:47.9]} 19. Bxf5 {[%clk 0:01:00.4]} 19... Bxf5 {[%clk
0:01:45.2]} 20. Rxf5 {[%clk 0:01:00.1]} 20... Ng4 {[%clk 0:01:45.2]} 21. Nf1
{[%clk 0:00:49.2]} 21... Rxf5 {[%clk 0:01:08.2]} 22. Qxf5 {[%clk 0:00:50.1]}
22... N8h6 {[%clk 0:01:08.6]} 23. Qc2 {[%clk 0:00:35.3]} 23... Rf8 {[%clk
0:01:01.4]} 24. Kg1 {[%clk 0:00:27.8]} 24... Qh4 {[%clk 0:00:56.6]} 25. h3
{[%clk 0:00:11.5]} 25... Nf2 {[%clk 0:00:27.2]} 26. Rc1 {[%clk 0:00:07.4]} 26...
Ne4 {[%clk 0:00:19.3]} 27. Bd4 {[%clk 0:00:07.7]} 27... Rf2 {[%clk 0:00:18.1]}
28. Qd1 {[%clk 0:00:07.9]} 28... Nf5 {[%clk 0:00:16.1]} 29. Rc2 {[%clk
0:00:05.3]} 29... Nxd4 {[%clk 0:00:14.3]} 30. exd4 {[%clk 0:00:05]} 30... Qf4
{[%clk 0:00:14.4]} 31. Rxf2 {[%clk 0:00:04.4]} 31... Qxf2+ {[%clk 0:00:14.6]}
32. Kh1 {[%clk 0:00:04.4]} 32... g6 {[%clk 0:00:13.3]} 33. Qf3 {[%clk
0:00:04.3]} 33... Qxf3 {[%clk 0:00:11.6]} 34. gxf3 {[%clk 0:00:05.2]} 34... Nc3
{[%clk 0:00:12.3]} 35. a3 {[%clk 0:00:04.8]} 35... Ne2 {[%clk 0:00:11.9]} 36.
Ne3 {[%clk 0:00:05]} 36... Nxd4 {[%clk 0:00:11.9]} 37. Kg2 {[%clk 0:00:05.9]}
37... Kg7 {[%clk 0:00:11.8]} 38. Kg3 {[%clk 0:00:06.1]} 38... Kf6 {[%clk
0:00:11.7]} 39. Kf4 {[%clk 0:00:06.7]} 39... Ne2+ {[%clk 0:00:11.3]} 40. Ke4
{[%clk 0:00:06.6]} 40... g5 {[%clk 0:00:11.1]} 41. Ng4+ {[%clk 0:00:06.7]} 41...
Kg6 {[%clk 0:00:11.1]} 42. Nf2 {[%clk 0:00:06]} 42... h5 {[%clk 0:00:08.6]} 43.
c5 {[%clk 0:00:05.4]} 43... Nc3+ {[%clk 0:00:07.8]} 44. Kd4 {[%clk 0:00:05.4]}
44... Nb5+ {[%clk 0:00:08.2]} 45. Kc4 {[%clk 0:00:03.3]} 45... Nxa3+ {[%clk
0:00:08.5]} 46. Kb3 {[%clk 0:00:03.9]} 46... Nb5 {[%clk 0:00:08.9]} 47. Kc4
{[%clk 0:00:04.5]} 47... a6 {[%clk 0:00:09.1]} 48. Ne4 {[%clk 0:00:04.1]} 48...
Kf5 {[%clk 0:00:08.7]} 49. Ng3+ {[%clk 0:00:03.8]} 49... Kg6 {[%clk 0:00:08.7]}
50. Ne4 {[%clk 0:00:04.1]} 50... h4 {[%clk 0:00:09]} 51. Nf2 {[%clk 0:00:03.3]}
51... Kf5 {[%clk 0:00:08.7]} 52. Nd3 {[%clk 0:00:03.8]} 52... Na7 {[%clk
0:00:07.8]} 53. Kd4 {[%clk 0:00:03.1]} 53... b5 {[%clk 0:00:07.2]} 54. c6 {[%clk
0:00:02.2]} 54... Nc8 {[%clk 0:00:07.3]} 55. Ke3 {[%clk 0:00:02.7]} 55... Ne7
{[%clk 0:00:07.3]} 56. Kd4 {[%clk 0:00:03.6]} 56... Ng6 {[%clk 0:00:07.5]} 57.
Nf2 {[%clk 0:00:03.3]} 57... Nf4 {[%clk 0:00:07.4]} 58. Ne4 {[%clk 0:00:02.1]}
58... Ne2+ {[%clk 0:00:05.4]} 59. Ke3 {[%clk 0:00:02.1]} 59... Nf4 {[%clk
0:00:05]} 60. Kd4 {[%clk 0:00:02.6]} 60... Ng6 {[%clk 0:00:03.6]} 61. Nxd6+
{[%clk 0:00:02.8]} 61... cxd6 {[%clk 0:00:03.7]} 62. c7 {[%clk 0:00:03.7]} 62...
Ne7 {[%clk 0:00:04.3]} 63. Ke3 {[%clk 0:00:04.1]} 63... Nxd5+ {[%clk 0:00:04.5]}
64. Kd3 {[%clk 0:00:04.1]} 64... Nxc7 {[%clk 0:00:05.4]} 0-1

[Event "*** Titled Tuesday Blitz"]
[Site "Chess.com"]
[Date "2020.05.26"]
[Round "8"]
[White "LiamVrolijk"]
[Black "SketchyMoves"]
[Result "1-0"]
[WhiteElo "2789"]
[BlackElo "2638"]
[TimeControl "180+1"]
[EndTime "11:42:25 PDT"]
[Termination "LiamVrolijk won by checkmate"]

1. d4 {[%clk 0:03:00.9]} 1... e6 {[%clk 0:02:59.7]} 2. Nf3 {[%clk 0:03:00.7]}
2... Nf6 {[%clk 0:02:59.5]} 3. c4 {[%clk 0:03:00.8]} 3... Bb4+ {[%clk
0:02:59.1]} 4. Bd2 {[%clk 0:02:59.8]} 4... Qe7 {[%clk 0:02:58]} 5. g3 {[%clk
0:03:00.2]} 5... Nc6 {[%clk 0:02:58.1]} 6. e3 {[%clk 0:03:00.3]} 6... Bxd2+
{[%clk 0:02:55.3]} 7. Nfxd2 {[%clk 0:03:01.2]} 7... e5 {[%clk 0:02:47.5]} 8. d5
{[%clk 0:03:00.1]} 8... Nb8 {[%clk 0:02:46.5]} 9. Bg2 {[%clk 0:02:59.1]} 9... c5
{[%clk 0:02:44.8]} 10. Nc3 {[%clk 0:02:54.7]} 10... d6 {[%clk 0:02:44.2]} 11.
O-O {[%clk 0:02:55.3]} 11... O-O {[%clk 0:02:44.1]} 12. Qc2 {[%clk 0:02:44.2]}
12... g6 {[%clk 0:02:36.2]} 13. Rae1 {[%clk 0:02:42.8]} 13... Na6 {[%clk
0:02:25.5]} 14. f4 {[%clk 0:02:39.8]} 14... Kg7 {[%clk 0:02:16.6]} 15. Nf3
{[%clk 0:02:17.8]} 15... Nd7 {[%clk 0:02:07.9]} 16. Nb5 {[%clk 0:02:17.2]} 16...
f5 {[%clk 0:01:57.6]} 17. e4 {[%clk 0:02:10.5]} 17... fxe4 {[%clk 0:01:52.2]}
18. Qxe4 {[%clk 0:02:06.3]} 18... Nf6 {[%clk 0:01:51.3]} 19. Qe3 {[%clk
0:02:03.4]} 19... e4 {[%clk 0:01:46.1]} 20. Ng5 {[%clk 0:01:42.9]} 20... Bf5
{[%clk 0:01:41.3]} 21. Nxe4 {[%clk 0:01:35.8]} 21... Bxe4 {[%clk 0:01:30.2]} 22.
Bxe4 {[%clk 0:01:34.5]} 22... Nc7 {[%clk 0:01:16.1]} 23. Nc3 {[%clk 0:01:25.5]}
23... Rae8 {[%clk 0:01:14.8]} 24. Qd2 {[%clk 0:01:11.5]} 24... Qd7 {[%clk
0:01:13.1]} 25. Bf3 {[%clk 0:01:07.9]} 25... b5 {[%clk 0:01:04.6]} 26. b3 {[%clk
0:01:06.1]} 26... b4 {[%clk 0:01:03.5]} 27. Nd1 {[%clk 0:01:01.6]} 27... Rxe1
{[%clk 0:01:01.1]} 28. Rxe1 {[%clk 0:01:02.5]} 28... Re8 {[%clk 0:01:01.4]} 29.
Nf2 {[%clk 0:01:00.6]} 29... Re7 {[%clk 0:00:58]} 30. Kg2 {[%clk 0:00:56.4]}
30... Qe8 {[%clk 0:00:57.6]} 31. Rxe7+ {[%clk 0:00:50.3]} 31... Qxe7 {[%clk
0:00:58.5]} 32. Qe2 {[%clk 0:00:50.5]} 32... Qxe2 {[%clk 0:00:48.7]} 33. Bxe2
{[%clk 0:00:51.4]} 33... a5 {[%clk 0:00:49.3]} 34. Bd3 {[%clk 0:00:51.4]} 34...
h6 {[%clk 0:00:44.6]} 35. Kf3 {[%clk 0:00:47]} 35... Na8 {[%clk 0:00:42.4]} 36.
h4 {[%clk 0:00:44.8]} 36... h5 {[%clk 0:00:27.4]} 37. f5 {[%clk 0:00:37.9]}
37... gxf5 {[%clk 0:00:25.6]} 38. Bxf5 {[%clk 0:00:38.8]} 38... Nb6 {[%clk
0:00:24.7]} 39. Nd3 {[%clk 0:00:34.9]} 39... a4 {[%clk 0:00:21.6]} 40. Nf4
{[%clk 0:00:33.7]} 40... a3 {[%clk 0:00:16.6]} 41. Bg6 {[%clk 0:00:21.8]} 41...
Kh6 {[%clk 0:00:16.2]} 42. Bd3 {[%clk 0:00:20.3]} 42... Nbd7 {[%clk 0:00:16]}
43. Be2 {[%clk 0:00:14.9]} 43... Ne5+ {[%clk 0:00:16.1]} 44. Ke3 {[%clk
0:00:15.6]} 44... Kg7 {[%clk 0:00:12.6]} 45. Ne6+ {[%clk 0:00:13]} 45... Kg6
{[%clk 0:00:10.9]} 46. Kf4 {[%clk 0:00:13.3]} 46... Kh6 {[%clk 0:00:07.8]} 47.
Kf5 {[%clk 0:00:12.3]} 47... Nfg4 {[%clk 0:00:08.2]} 48. Ke4 {[%clk 0:00:06.4]}
48... Nf2+ {[%clk 0:00:06.4]} 49. Ke3 {[%clk 0:00:06.9]} 49... Nfg4+ {[%clk
0:00:05.8]} 50. Kf4 {[%clk 0:00:06.3]} 50... Nf2 {[%clk 0:00:05.2]} 51. Ke3
{[%clk 0:00:05.7]} 51... Nfg4+ {[%clk 0:00:05.4]} 52. Kd2 {[%clk 0:00:06.6]}
52... Nf6 {[%clk 0:00:05]} 53. Ng5 {[%clk 0:00:06.5]} 53... Kg6 {[%clk
0:00:04.7]} 54. Ke3 {[%clk 0:00:06.8]} 54... Kf5 {[%clk 0:00:04.1]} 55. Bd1
{[%clk 0:00:03.7]} 55... Nfg4+ {[%clk 0:00:02.7]} 56. Ke2 {[%clk 0:00:03.5]}
56... Nf6 {[%clk 0:00:03.1]} 57. Kf2 {[%clk 0:00:03.3]} 57... Ne4+ {[%clk
0:00:03.1]} 58. Kg2 {[%clk 0:00:02.5]} 58... Nxg3 {[%clk 0:00:02.5]} 59. Kxg3
{[%clk 0:00:02.2]} 59... Nd3 {[%clk 0:00:03]} 60. Bc2 {[%clk 0:00:02.5]} 60...
Ke5 {[%clk 0:00:03.6]} 61. Bxd3 {[%clk 0:00:02.5]} 61... Kd4 {[%clk 0:00:04.5]}
62. Bg6 {[%clk 0:00:01.5]} 62... Kc3 {[%clk 0:00:04.8]} 63. Bxh5 {[%clk
0:00:02]} 63... Kb2 {[%clk 0:00:05.6]} 64. Bd1 {[%clk 0:00:02.2]} 64... Kxa2
{[%clk 0:00:05.2]} 65. h5 {[%clk 0:00:01.7]} 65... Kb2 {[%clk 0:00:06.1]} 66. h6
{[%clk 0:00:02.6]} 66... a2 {[%clk 0:00:06.1]} 67. h7 {[%clk 0:00:03.2]} 67...
a1=Q {[%clk 0:00:06.1]} 68. h8=Q+ {[%clk 0:00:03]} 68... Ka2 {[%clk 0:00:07]}
69. Qxa1+ {[%clk 0:00:03.4]} 69... Kxa1 {[%clk 0:00:07.9]} 70. Nf7 {[%clk
0:00:03.7]} 70... Kb2 {[%clk 0:00:08.8]} 71. Nxd6 {[%clk 0:00:04.6]} 71... Kc1
{[%clk 0:00:09]} 72. Ne4 {[%clk 0:00:04.9]} 72... Kxd1 {[%clk 0:00:09.6]} 73. d6
{[%clk 0:00:05.5]} 73... Kc2 {[%clk 0:00:10.5]} 74. d7 {[%clk 0:00:05.8]} 74...
Kxb3 {[%clk 0:00:11.4]} 75. d8=Q {[%clk 0:00:06.3]} 75... Kc2 {[%clk 0:00:12.1]}
76. Qd2+ {[%clk 0:00:06.3]} 76... Kb3 {[%clk 0:00:12.5]} 77. Nxc5+ {[%clk
0:00:06.9]} 77... Ka3 {[%clk 0:00:12.5]} 78. Nd3 {[%clk 0:00:06.3]} 78... b3
{[%clk 0:00:13.4]} 79. Qa5# {[%clk 0:00:06.3]} 1-0